[Event "European-ch Seniors 2018"]
[Site "Drammen"]
[Date "2018.08.09"]
[Round "6"]
[White "Agdestein, Simen"]
[Black "Gayson, Peter"]
[Result "1-0"]
[ECO "A04"]
[WhiteElo "2576"]
[BlackElo "2150"]
[Annotator "ChessBase"]
[PlyCount "83"]
[EventDate "2018.08.04"]
[EventType "swiss"]
[EventCountry "NOR"]
[SourceTitle "playchess.com"]
[Source "ChessBase"]
[SourceQuality "1"]
[TimeControl "40/5400+30:1800+30"]

1. Nf3 {[%emt 0:09:26]} f5 {[%emt 0:01:29]} 2. d3 {[%emt 0:00:04]} d5 {[%emt 0:04:12]} 3. Nbd2 {[%emt 0:06:31]} Nf6 {[%emt 0:02:11]} 4. c4 {[%emt 0:06:43]} c6 {[%emt 0:04:41]} 5. b3 {[%emt 0:03:50]} e6 {[%emt 0:03:29]} 6. Bb2 {[%emt 0:02:13]} Be7 {[%emt 0:05:48]} 7. g3 {[%emt 0:02:43]} O-O {[%emt 0:02:10]} 8. Bg2 {[%emt 0:00:12]} Ne8 {[%emt 0:10:13]} 9. O-O {[%emt 0:03:50]} Bf6 {[%emt 0:01:46]} 10. Qc2 {[%emt 0:02:11]} Bxb2 {[%emt 0:04:22]} 11. Qxb2 {[%emt 0:00:04]} Qf6 {[%emt 0:06:04]} 12. Ne5 {[%emt 0:03:40]} Nd7 {[%emt 0:03:10]} 13. f4 {[%emt 0:00:10]} Nd6 {[%emt 0:12:26]} 14. e4 {[%emt 0:03:58]} dxe4 {[%emt 0:05:39]} 15. dxe4 {[%emt 0:00:13]} Nf7 {[%emt 0:00:28]} 16. Nd3 {[%emt 0:02:32]} e5 {[%emt 0:07:36]} 17. Rae1 {[%emt 0:08:03]} Qd6 {[%emt 0:06:22]} 18. Qc3 {[%emt 0:03:24]} Nc5 {[%emt 0:10:53]} 19. Nxe5 {[%emt 0:01:29]} Nxe5 {[%emt 0:01:54]} 20. fxe5 {[%emt 0:00:42]} Qh6 {[%emt 0:00:50]} 21. b4 {[%emt 0:02:48]} Nxe4 {[%emt 0:00:54]} 22. Nxe4 {[%emt 0:01:43]} fxe4 {[%emt 0:00:07]} 23. Rxf8+ {[%emt 0:00:14]} Kxf8 {[%emt 0:00:02]} 24. Bxe4 {[%emt 0:00:47]} Bh3 {[%emt 0:02:15]} 25. b5 {[%emt 0:06:53]} Kg8 {[%emt 0:00:36]} 26. bxc6 {[%emt 0:00:37]} bxc6 {[%emt 0:00:05]} 27. Qd3 {[%emt 0:06:25]} Rf8 {[%emt 0:00:51]} 28. c5 {[%emt 0:01:17]} Qh5 {[%emt 0:01:11]} 29. Bxc6 {[%emt 0:01:32]} Kh8 {[%emt 0:00:31]} 30. Bd5 {[%emt 0:02:26]} Qg4 {[%emt 0:01:53]} 31. e6 {[%emt 0:03:47]} Qb4 {[%emt 0:00:18]} 32. Qe3 {[%emt 0:01:18]} Qb5 {[%emt 0:00:29]} 33. Bf3 {[%emt 0:01:43]} h6 {[%emt 0:01:00]} 34. e7 {[%emt 0:00:17]} Re8 {[%emt 0:00:19]} 35. c6 {[%emt 0:03:21]} Qc4 {[%emt 0:00:38]} 36. Qxa7 {[%emt 0:01:18]} Qb4 {[%emt 0:00:32]} 37. Qe3 {[%emt 0:00:37]} Qc4 {[%emt 0:00:22]} 38. a3 {[%emt 0:02:24]} Qc2 {[%emt 0:00:36]} 39. Qf2 {[%emt 0:02:17]} Qf5 40. Bg2 {[%emt 0:00:00]} Qc8 {[%emt 0:00:00]} 41. Bxh3 {[%emt 0:00:35]} Qxh3 {[%emt 0:01:20]} 42. Qf8+ {[%emt 0:00:10]} 1-0

[Event "European-ch Seniors 2018"]
[Site "Drammen"]
[Date "2018.08.09"]
[Round "6"]
[White "Vorotnikov, Vladislav V"]
[Black "Moen, Ole Christian"]
[Result "1-0"]
[ECO "C29"]
[WhiteElo "2445"]
[BlackElo "2228"]
[Annotator "NA"]
[PlyCount "81"]
[EventDate "2018.08.04"]
[EventType "swiss"]
[EventCountry "NOR"]
[SourceTitle "playchess.com"]
[Source "ChessBase"]
[SourceQuality "1"]
[TimeControl "40/5400+30:1800+30"]

1. e4 {[%emt 0:00:00]} e5 {[%emt 0:00:00]} 2. Nc3 {[%emt 0:00:00]} Nf6 {[%emt 0:00:02]} 3. f4 {[%emt 0:00:14]} d5 {[%emt 0:00:12]} 4. fxe5 {[%emt 0:00:08]} Nxe4 $11 {[%emt 0:00:08]} 5. Nf3 {[%emt 0:00:36]} Bg4 {[%emt 0:03:04]} 6. Qe2 {[%emt 0:04:26]} Nc5 {[%emt 0:07:31]} 7. d4 {[%emt 0:04:35]} Ne6 {[%emt 0:00:45]} 8. Be3 {[%emt 0:01:28]} a6 {[%emt 0:03:25]} 9. Qf2 {[%emt 0:05:23]} Bb4 {[%emt 0:01:57]} 10. a3 {[%emt 0:09:09]} Bxc3+ {[%emt 0:05:51]} 11. bxc3 {[%emt 0:00:18]} c5 {[%emt 0:00:11]} 12. Bd3 {[%emt 0:03:34]} c4 {[%emt 0:05:51]} 13. Be2 {[%emt 0:00:24]} Qa5 {[%emt 0:03:48]} 14. O-O {[%emt 0:05:01]} Bxf3 {[%emt 0:00:53]} 15. Bxf3 {[%emt 0:08:12]} Nc6 {[%emt 0:02:47]} 16. Bh5 {[%emt 0:02:54]} O-O {[%emt 0:02:51]} 17. Bxf7+ {[%emt 0:00:12]} Kh8 {[%emt 0:00:04]} 18. Qd2 {[%emt 0:08:26]} Ncd8 {[%emt 0:03:50]} 19. Bh5 {[%emt 0:00:12]} Rxf1+ {[%emt 0:02:07]} 20. Kxf1 {[%emt 0:00:10]} Nc6 {[%emt 0:01:24]} 21. Bg4 {[%emt 0:10:41]} Rf8+ {[%emt 0:00:08]} 22. Kg1 {[%emt 0:00:31]} Ncd8 {[%emt 0:00:23]} 23. Qe1 {[%emt 0:04:10]} Qa4 {[%emt 0:02:15]} 24. Qc1 {[%emt 0:02:37]} Qe8 {[%emt 0:01:49]} 25. Bf3 {[%emt 0:01:05]} Nc7 {[%emt 0:02:19]} 26. Qb2 {[%emt 0:01:18]} b5 {[%emt 0:02:43]} 27. Qb4 {[%emt 0:02:01]} Nde6 {[%emt 0:01:52]} 28. Rf1 {[%emt 0:05:25]} Qg6 {[%emt 0:06:32]} 29. Qxf8+ {[%emt 0:00:54]} Nxf8 {[%emt 0:00:08]} 30. Bh5 {[%emt 0:00:01]} Kg8 {[%emt 0:03:18]} 31. Bxg6 {[%emt 0:00:06]} Nxg6 {[%emt 0:01:22]} 32. Ra1 Kf7 {[%emt 0:01:47]} 33. a4 {[%emt 0:02:07]} bxa4 {[%emt 0:00:08]} 34. Rxa4 {[%emt 0:00:07]} Nf8 {[%emt 0:00:07]} 35. Bc1 {[%emt 0:00:40]} Nfe6 {[%emt 0:01:30]} 36. Ba3 {[%emt 0:00:12]} h5 {[%emt 0:01:36]} 37. Bd6 {[%emt 0:01:40]} Nb5 {[%emt 0:00:04]} 38. Bb4 {[%emt 0:00:17]} Nbc7 {[%emt 0:01:41]} 39. Kf2 {[%emt 0:01:38]} Ke8 {[%emt 0:00:23]} 40. Ke3 {[%emt 0:00:00]} Kd7 {[%emt 0:00:00]} 41. Bd6 {[%emt 0:04:25]} 1-0

[Event "European-ch Seniors 2018"]
[Site "Drammen"]
[Date "2018.08.09"]
[Round "6"]
[White "Bogdanov, Valentin"]
[Black "Gruzmann, Boris"]
[Result "1-0"]
[ECO "E91"]
[WhiteElo "2356"]
[BlackElo "2183"]
[Annotator "NA"]
[PlyCount "79"]
[EventDate "2018.08.04"]
[EventType "swiss"]
[EventCountry "NOR"]
[SourceTitle "playchess.com"]
[Source "ChessBase"]
[SourceQuality "1"]
[TimeControl "40/5400+30:1800+30"]

1. d4 {[%emt 0:00:00]} Nf6 {[%emt 0:00:00]} 2. c4 {[%emt 0:00:00]} g6 {[%emt 0:00:10]} 3. Nc3 {[%emt 0:00:00]} Bg7 {[%emt 0:00:08]} 4. e4 {[%emt 0:00:00]} d6 {[%emt 0:00:08]} 5. Nf3 {[%emt 0:00:00]} O-O {[%emt 0:00:12]} 6. Be2 {[%emt 0:00:02]} Bg4 {[%emt 0:00:23]} 7. Be3 {[%emt 0:00:13]} Nfd7 {[%emt 0:00:22]} 8. O-O {[%emt 0:00:40]} e5 {[%emt 0:00:31]} 9. d5 {[%emt 0:00:05]} f5 {[%emt 0:01:40]} 10. Ng5 {[%emt 0:01:06]} f4 {[%emt 0:00:38]} 11. Bxg4 {[%emt 0:00:08]} Qxg5 {[%emt 0:00:08]} 12. Bd2 {[%emt 0:00:39]} Qe7 {[%emt 0:11:14]} 13. b4 {[%emt 0:03:14]} Nf6 {[%emt 0:02:35]} 14. Be6+ {[%emt 0:00:53]} Kh8 {[%emt 0:00:09]} 15. f3 {[%emt 0:00:11]} h5 {[%emt 0:01:28]} 16. g3 {[%emt 0:17:42]} Nh7 {[%emt 0:04:39]} 17. Bh3 {[%emt 0:00:20]} Nd7 {[%emt 0:07:46]} 18. Qe2 {[%emt 0:05:33]} Ng5 {[%emt 0:08:23]} 19. Bg2 {[%emt 0:00:06]} Nh7 {[%emt 0:02:31]} 20. Rac1 {[%emt 0:02:06]} a6 {[%emt 0:03:14]} 21. Nd1 {[%emt 0:04:37]} fxg3 {[%emt 0:05:58]} 22. hxg3 {[%emt 0:00:35]} b6 {[%emt 0:03:17]} 23. Nf2 {[%emt 0:04:49]} Bf6 {[%emt 0:00:53]} 24. Nd3 {[%emt 0:02:42]} Rg8 {[%emt 0:04:57]} 25. c5 {[%emt 0:01:35]} dxc5 {[%emt 0:10:12]} 26. bxc5 {[%emt 0:00:53]} Nxc5 {[%emt 0:02:41]} 27. Nxc5 {[%emt 0:04:56]} bxc5 {[%emt 0:00:08]} 28. Be3 {[%emt 0:02:24]} h4 {[%emt 0:04:36]} 29. gxh4 {[%emt 0:04:04]} Bxh4 {[%emt 0:00:36]} 30. Rxc5 {[%emt 0:00:40]} Nf6 {[%emt 0:04:41]} 31. Rfc1 {[%emt 0:00:50]} Ne8 {[%emt 0:00:34]} 32. Bh3 {[%emt 0:01:28]} Bg5 {[%emt 0:02:25]} 33. Rc6 {[%emt 0:07:19]} Bxe3+ {[%emt 0:01:58]} 34. Qxe3 {[%emt 0:00:01]} Qh4 {[%emt 0:01:03]} 35. Kg2 {[%emt 0:04:23]} Rg7 {[%emt 0:04:31]} 36. Rh1 {[%emt 0:02:03]} Rh7 {[%emt 0:04:06]} 37. Rxg6 {[%emt 0:01:11]} Ng7 {[%emt 0:06:35]} 38. Qc3 {[%emt 0:08:21]} Qe7 {[%emt 0:01:30]} 39. Bg4 {[%emt 0:01:39]} Rg8 {[%emt 0:00:37]} 40. Rgh6 {[%emt 0:00:00]} 1-0

[Event "European-ch Seniors 2018"]
[Site "Drammen"]
[Date "2018.08.09"]
[Round "6"]
[White "Elseth, Roar"]
[Black "Clark, Gary M"]
[Result "1/2-1/2"]
[ECO "B44"]
[WhiteElo "2311"]
[BlackElo "2285"]
[Annotator "NA"]
[PlyCount "106"]
[EventDate "2018.08.04"]
[EventType "swiss"]
[EventCountry "NOR"]
[SourceTitle "playchess.com"]
[Source "ChessBase"]
[SourceQuality "1"]
[TimeControl "40/5400+30:1800+30"]

1. e4 {[%emt 0:00:00]} c5 {[%emt 0:00:00]} 2. Nf3 {[%emt 0:00:00]} e6 {[%emt 0:00:00]} 3. d4 {[%emt 0:00:00]} cxd4 {[%emt 0:00:03]} 4. Nxd4 {[%emt 0:00:00]} Nc6 {[%emt 0:00:33]} 5. Nxc6 {[%emt 0:03:47]} bxc6 {[%emt 0:00:17]} 6. Bd3 {[%emt 0:00:05]} Nf6 {[%emt 0:03:08]} 7. O-O {[%emt 0:00:31]} d5 {[%emt 0:02:44]} 8. Nd2 {[%emt 0:01:36]} Be7 {[%emt 0:01:04]} 9. Re1 {[%emt 0:05:41]} Nd7 {[%emt 0:17:31]} 10. e5 {[%emt 0:15:45]} a5 {[%emt 0:03:51]} 11. Qg4 {[%emt 0:08:12]} g6 {[%emt 0:09:44]} 12. Nf3 {[%emt 0:03:54]} h5 {[%emt 0:09:16]} 13. Qg3 {[%emt 0:09:00]} Nc5 {[%emt 0:00:40]} 14. Bg5 {[%emt 0:00:57]} Ba6 {[%emt 0:05:08]} 15. Bxa6 {[%emt 0:09:16]} Rxa6 {[%emt 0:01:13]} 16. Bxe7 {[%emt 0:01:33]} Qxe7 {[%emt 0:00:10]} 17. Ng5 {[%emt 0:01:58]} Rb6 {[%emt 0:01:03]} 18. b3 {[%emt 0:01:12]} Rb4 {[%emt 0:00:49]} 19. f4 {[%emt 0:01:29]} O-O {[%emt 0:02:04]} 20. c3 {[%emt 0:00:59]} Rb7 {[%emt 0:02:15]} 21. Rad1 {[%emt 0:05:28]} Kg7 {[%emt 0:04:37]} 22. Rd4 {[%emt 0:00:12]} Kh6 {[%emt 0:05:18]} 23. Qh3 {[%emt 0:03:23]} Rh8 {[%emt 0:02:13]} 24. Qe3 {[%emt 0:00:53]} a4 {[%emt 0:03:13]} 25. b4 {[%emt 0:02:16]} Nd7 {[%emt 0:00:08]} 26. Rf1 {[%emt 0:03:16]} Kg7 {[%emt 0:01:37]} 27. Rd3 {[%emt 0:04:24]} c5 {[%emt 0:03:41]} 28. a3 {[%emt 0:02:01]} cxb4 {[%emt 0:01:52]} 29. cxb4 {[%emt 0:00:57]} Rc8 {[%emt 0:00:40]} 30. Nf3 {[%emt 0:00:40]} Rc4 {[%emt 0:02:52]} 31. Nd4 {[%emt 0:00:32]} Nb8 {[%emt 0:00:40]} 32. Qg3 {[%emt 0:03:29]} Kh7 {[%emt 0:02:07]} 33. f5 {[%emt 0:05:11]} exf5 {[%emt 0:01:15]} 34. Nf3 {[%emt 0:02:54]} Rg4 35. Qf2 {[%emt 0:00:29]} Rc7 {[%emt 0:02:35]} 36. Rfd1 {[%emt 0:02:08]} d4 {[%emt 0:00:48]} 37. h3 {[%emt 0:00:33]} Re4 {[%emt 0:00:31]} 38. h4 {[%emt 0:01:43]} Nc6 {[%emt 0:00:52]} 39. Ng5+ {[%emt 0:00:43]} Kg7 {[%emt 0:00:11]} 40. Nxe4 {[%emt 0:00:00]} fxe4 {[%emt 0:00:00]} 41. Rxd4 {[%emt 0:03:52]} Nxd4 {[%emt 0:00:31]} 42. Qxd4 {[%emt 0:00:42]} Qe6 {[%emt 0:00:54]} 43. Qxe4 {[%emt 0:03:35]} Rc4 {[%emt 0:00:21]} 44. Qe3 {[%emt 0:07:20]} Qg4 {[%emt 0:01:38]} 45. Rf1 {[%emt 0:01:01]} Rc2 {[%emt 0:15:13]} 46. Rf2 {[%emt 0:00:58]} Qd1+ {[%emt 0:00:47]} 47. Kh2 {[%emt 0:01:55]} Qc1 {[%emt 0:09:09]} 48. Qxc1 {[%emt 0:01:13]} Rxc1 {[%emt 0:01:13]} 49. Kg3 {[%emt 0:00:14]} Kf8 {[%emt 0:01:55]} 50. Rf4 {[%emt 0:05:29]} Ke7 {[%emt 0:01:06]} 51. Rf3 {[%emt 0:07:12]} Rc2 {[%emt 0:04:19]} 52. Rf4 {[%emt 0:01:54]} Rc3+ {[%emt 0:00:23]} 53. Rf3 {[%emt 0:00:09]} Rc2 {[%emt 0:00:05]} 1/2-1/2

[Event "European-ch Seniors 2018"]
[Site "Drammen"]
[Date "2018.08.09"]
[Round "6"]
[White "Gaprindashvili, Nona"]
[Black "Kolbak, Jens"]
[Result "1/2-1/2"]
[ECO "D37"]
[WhiteElo "2305"]
[BlackElo "2181"]
[Annotator "NA"]
[PlyCount "62"]
[EventDate "2018.08.04"]
[EventType "swiss"]
[EventCountry "NOR"]
[SourceTitle "playchess.com"]
[Source "ChessBase"]
[SourceQuality "1"]
[TimeControl "40/5400+30:1800+30"]

1. d4 {[%emt 0:00:00]} Nf6 {[%emt 0:00:00]} 2. c4 {[%emt 0:00:00]} e6 {[%emt 0:00:00]} 3. Nf3 {[%emt 0:00:00]} d5 {[%emt 0:00:19]} 4. Nc3 {[%emt 0:00:20]} a6 {[%emt 0:00:26]} 5. cxd5 {[%emt 0:01:26]} exd5 {[%emt 0:00:08]} 6. Bg5 {[%emt 0:00:06]} Be6 {[%emt 0:00:58]} 7. e3 {[%emt 0:00:42]} Nbd7 {[%emt 0:00:50]} 8. Bd3 {[%emt 0:02:23]} Bd6 {[%emt 0:00:51]} 9. Rc1 {[%emt 0:01:53]} c6 {[%emt 0:07:02]} 10. O-O {[%emt 0:04:35]} O-O {[%emt 0:03:58]} 11. Bh4 {[%emt 0:10:03]} Qb8 {[%emt 0:07:03]} 12. Bg3 {[%emt 0:00:22]} Bg4 {[%emt 0:06:28]} 13. b4 {[%emt 0:07:21]} Re8 {[%emt 0:01:43]} 14. Qc2 {[%emt 0:05:43]} Bh5 {[%emt 0:08:55]} 15. Nh4 {[%emt 0:03:01]} Bxg3 {[%emt 0:04:03]} 16. hxg3 {[%emt 0:00:02]} Bg6 {[%emt 0:04:57]} 17. Nxg6 {[%emt 0:00:32]} hxg6 {[%emt 0:00:07]} 18. a4 {[%emt 0:00:29]} Qd6 {[%emt 0:01:57]} 19. Rfe1 {[%emt 0:05:21]} Re7 {[%emt 0:01:22]} 20. b5 {[%emt 0:09:11]} axb5 {[%emt 0:01:38]} 21. axb5 {[%emt 0:00:02]} c5 {[%emt 0:02:38]} 22. dxc5 {[%emt 0:01:18]} Qxc5 {[%emt 0:00:45]} 23. Ne2 {[%emt 0:06:53]} Qxc2 {[%emt 0:02:45]} 24. Bxc2 {[%emt 0:01:22]} g5 {[%emt 0:07:55]} 25. Bb3 {[%emt 0:00:58]} Nb6 {[%emt 0:01:12]} 26. Nd4 {[%emt 0:01:32]} g6 {[%emt 0:00:23]} 27. Rc2 {[%emt 0:01:20]} Rc8 {[%emt 0:02:07]} 28. Rxc8+ {[%emt 0:19:17]} Nxc8 {[%emt 0:00:05]} 29. Nf3 {[%emt 0:00:14]} g4 {[%emt 0:01:21]} 30. Rc1 {[%emt 0:00:10]} Nb6 {[%emt 0:02:39]} 31. Nd4 {[%emt 0:00:01]} Kf8 {[%emt 0:03:01]} 1/2-1/2

[Event "European-ch Seniors 2018"]
[Site "Drammen"]
[Date "2018.08.09"]
[Round "6"]
[White "Stebbings, Anthony"]
[Black "Ogaard, Leif"]
[Result "1/2-1/2"]
[ECO "B46"]
[WhiteElo "2265"]
[BlackElo "2386"]
[Annotator "NA"]
[PlyCount "106"]
[EventDate "2018.08.04"]
[EventType "swiss"]
[EventCountry "NOR"]
[SourceTitle "playchess.com"]
[Source "ChessBase"]
[SourceQuality "1"]
[TimeControl "40/5400+30:1800+30"]

1. e4 {[%emt 0:00:00]} c5 {[%emt 0:00:00]} 2. Nf3 {[%emt 0:00:00]} e6 {[%emt 0:00:03]} 3. d4 {[%emt 0:00:00]} cxd4 {[%emt 0:00:06]} 4. Nxd4 {[%emt 0:00:00]} Nc6 {[%emt 0:00:18]} 5. Nc3 {[%emt 0:00:00]} a6 {[%emt 0:00:41]} 6. Nxc6 {[%emt 0:00:03]} bxc6 {[%emt 0:00:09]} 7. Bd3 {[%emt 0:00:11]} Qc7 {[%emt 0:03:55]} 8. O-O {[%emt 0:02:45]} Nf6 {[%emt 0:01:25]} 9. f4 {[%emt 0:02:47]} d5 {[%emt 0:06:09]} 10. Qe2 {[%emt 0:01:24]} Be7 {[%emt 0:00:36]} 11. Kh1 {[%emt 0:00:55]} Bb7 {[%emt 0:01:18]} 12. Bd2 {[%emt 0:00:45]} c5 {[%emt 0:01:23]} 13. b3 {[%emt 0:06:01]} c4 {[%emt 0:08:01]} 14. bxc4 {[%emt 0:00:09]} dxe4 {[%emt 0:00:12]} 15. Nxe4 {[%emt 0:00:25]} Nxe4 {[%emt 0:00:17]} 16. Bxe4 {[%emt 0:00:07]} Bxe4 {[%emt 0:00:12]} 17. Qxe4 {[%emt 0:00:03]} Rc8 {[%emt 0:00:11]} 18. Rab1 {[%emt 0:05:06]} O-O {[%emt 0:08:24]} 19. Rb7 {[%emt 0:01:11]} Qd8 {[%emt 0:00:11]} 20. Bc3 {[%emt 0:20:18]} Bf6 {[%emt 0:01:37]} 21. Bb4 {[%emt 0:03:38]} Re8 {[%emt 0:02:57]} 22. c5 {[%emt 0:11:37]} Qd4 {[%emt 0:03:47]} 23. Re1 {[%emt 0:01:13]} Red8 {[%emt 0:13:07]} 24. h3 {[%emt 0:07:33]} h5 {[%emt 0:06:10]} 25. Ra7 {[%emt 0:02:43]} Qxe4 {[%emt 0:01:45]} 26. Rxe4 {[%emt 0:00:02]} Rd1+ {[%emt 0:01:08]} 27. Kh2 {[%emt 0:00:28]} Bd4 {[%emt 0:00:32]} 28. Rxa6 {[%emt 0:06:47]} Bxc5 {[%emt 0:09:17]} 29. Bxc5 {[%emt 0:04:09]} Rxc5 {[%emt 0:00:07]} 30. c4 {[%emt 0:00:45]} Rc1 {[%emt 0:00:32]} 31. Kg3 {[%emt 0:08:28]} R5xc4 {[%emt 0:02:58]} 32. Rxc4 {[%emt 0:01:24]} Rxc4 {[%emt 0:00:07]} 33. Ra7 {[%emt 0:05:05]} h4+ {[%emt 0:04:13]} 34. Kf3 {[%emt 0:01:20]} Rc3+ {[%emt 0:00:11]} 35. Kf2 {[%emt 0:00:30]} g6 {[%emt 0:00:13]} 36. a4 {[%emt 0:00:45]} Kg7 {[%emt 0:00:20]} 37. a5 {[%emt 0:00:27]} Ra3 {[%emt 0:03:05]} 38. a6 {[%emt 0:00:13]} Kf6 {[%emt 0:00:10]} 39. Ke2 {[%emt 0:01:00]} Ra4 {[%emt 0:03:19]} 40. Ke3 {[%emt 0:00:00]} Ra2 {[%emt 0:00:00]} 41. Kf3 {[%emt 0:05:34]} Ra3+ {[%emt 0:04:24]} 42. Ke2 {[%emt 0:01:16]} Rg3 {[%emt 0:01:16]} 43. Kf2 {[%emt 0:00:25]} g5 {[%emt 0:00:39]} 44. fxg5+ {[%emt 0:00:55]} Rxg5 {[%emt 0:00:10]} 45. Ra8 {[%emt 0:05:05]} Ra5 {[%emt 0:00:48]} 46. a7 {[%emt 0:02:06]} Kf5 {[%emt 0:00:38]} 47. Rh8 {[%emt 0:00:28]} Rxa7 {[%emt 0:00:13]} 48. Rxh4 {[%emt 0:00:04]} Ra2+ {[%emt 0:00:26]} 49. Kf3 {[%emt 0:00:35]} Ra3+ {[%emt 0:00:08]} 50. Kf2 {[%emt 0:02:00]} e5 {[%emt 0:03:05]} 51. Rb4 {[%emt 0:05:55]} f6 {[%emt 0:01:56]} 52. g3 {[%emt 0:02:42]} Ra2+ {[%emt 0:04:17]} 53. Kf3 {[%emt 0:00:14]} Ra3+ {[%emt 0:00:14]} 1/2-1/2

[Event "European-ch Seniors 2018"]
[Site "Drammen"]
[Date "2018.08.09"]
[Round "6"]
[White "Werner, Clemens"]
[Black "Archangelsky, Mikhail"]
[Result "1-0"]
[ECO "C03"]
[WhiteElo "2258"]
[BlackElo "2033"]
[Annotator "NA"]
[PlyCount "85"]
[EventDate "2018.08.04"]
[EventType "swiss"]
[EventCountry "NOR"]
[SourceTitle "playchess.com"]
[Source "ChessBase"]
[SourceQuality "1"]
[TimeControl "40/5400+30:1800+30"]

1. e4 {[%emt 0:00:00]} e6 {[%emt 0:00:00]} 2. d4 {[%emt 0:00:02]} d5 {[%emt 0:00:00]} 3. Nd2 {[%emt 0:01:08]} h6 {[%emt 0:00:51]} 4. Ngf3 {[%emt 0:01:57]} Nf6 {[%emt 0:03:43]} 5. Bd3 {[%emt 0:01:41]} c5 {[%emt 0:00:49]} 6. e5 {[%emt 0:10:30]} Nfd7 {[%emt 0:00:13]} 7. c3 {[%emt 0:00:09]} Nc6 {[%emt 0:00:20]} 8. O-O {[%emt 0:00:24]} g5 {[%emt 0:03:58]} 9. h3 {[%emt 0:02:17]} h5 {[%emt 0:04:24]} 10. c4 {[%emt 0:08:23]} cxd4 {[%emt 0:35:29]} 11. cxd5 {[%emt 0:00:46]} Ncxe5 {[%emt 0:04:30]} 12. dxe6 {[%emt 0:01:01]} fxe6 {[%emt 0:01:02]} 13. Nc4 {[%emt 0:16:04]} Nxd3 {[%emt 0:13:12]} 14. Qxd3 {[%emt 0:00:44]} Rg8 {[%emt 0:00:31]} 15. Re1 {[%emt 0:14:28]} Qf6 {[%emt 0:00:39]} 16. Bxg5 {[%emt 0:15:14]} Rxg5 {[%emt 0:02:22]} 17. Nxg5 {[%emt 0:01:57]} Qxg5 {[%emt 0:00:15]} 18. Rxe6+ {[%emt 0:02:16]} Kf7 {[%emt 0:05:04]} 19. Rae1 {[%emt 0:06:18]} Nf6 {[%emt 0:09:22]} 20. Nd6+ {[%emt 0:01:19]} Bxd6 {[%emt 0:01:21]} 21. Rxd6 {[%emt 0:00:08]} Bf5 {[%emt 0:01:45]} 22. Qc4+ {[%emt 0:06:04]} Kg6 {[%emt 0:01:08]} 23. Re7 {[%emt 0:00:11]} Rf8 {[%emt 0:01:52]} 24. Re5 {[%emt 0:04:46]} Qf4 {[%emt 0:01:27]} 25. Qxd4 {[%emt 0:00:31]} Qxd4 {[%emt 0:03:40]} 26. Rxd4 {[%emt 0:00:01]} Rc8 {[%emt 0:00:35]} 27. Rd2 {[%emt 0:01:57]} Rc7 {[%emt 0:00:33]} 28. Re1 {[%emt 0:01:55]} Kg5 {[%emt 0:01:14]} 29. Kh2 {[%emt 0:00:45]} h4 {[%emt 0:00:32]} 30. a3 {[%emt 0:00:15]} Rh7 {[%emt 0:00:32]} 31. Rde2 {[%emt 0:00:17]} Ng8 {[%emt 0:02:44]} 32. Re8 {[%emt 0:00:28]} Rg7 {[%emt 0:00:11]} 33. g4 {[%emt 0:00:45]} hxg3+ {[%emt 0:00:06]} 34. fxg3 {[%emt 0:00:04]} Bd7 {[%emt 0:01:06]} 35. Rf8 {[%emt 0:00:17]} Nf6 {[%emt 0:00:19]} 36. g4 {[%emt 0:00:59]} Kg6 {[%emt 0:00:48]} 37. Kg3 {[%emt 0:00:41]} Nd5 {[%emt 0:00:59]} 38. Re5 {[%emt 0:00:27]} Bc6 {[%emt 0:00:18]} 39. h4 {[%emt 0:00:25]} Rd7 {[%emt 0:00:38]} 40. h5+ {[%emt 0:00:00]} Kg7 {[%emt 0:00:00]} 41. Rf2 {[%emt 0:03:31]} Nf6 {[%emt 0:04:24]} 42. Rg5+ {[%emt 0:00:16]} Kf7 {[%emt 0:00:46]} 43. Rgf5 {[%emt 0:00:15]} 1-0

[Event "European-ch Seniors 2018"]
[Site "Drammen"]
[Date "2018.08.09"]
[Round "6"]
[White "Blechzin, Igor"]
[Black "Rishovd, Svein"]
[Result "1/2-1/2"]
[ECO "B40"]
[WhiteElo "2250"]
[BlackElo "2046"]
[Annotator "NA"]
[PlyCount "42"]
[EventDate "2018.08.04"]
[EventType "swiss"]
[EventCountry "NOR"]
[SourceTitle "playchess.com"]
[Source "ChessBase"]
[SourceQuality "1"]
[TimeControl "40/5400+30:1800+30"]

1. e4 {[%emt 0:00:00]} c5 {[%emt 0:00:00]} 2. Nf3 {[%emt 0:00:00]} e6 {[%emt 0:00:00]} 3. Nc3 {[%emt 0:00:56]} a6 {[%emt 0:00:08]} 4. g3 {[%emt 0:00:25]} b5 {[%emt 0:01:06]} 5. Bg2 {[%emt 0:00:44]} Bb7 {[%emt 0:00:07]} 6. d3 {[%emt 0:00:40]} Be7 {[%emt 0:03:50]} 7. O-O {[%emt 0:00:21]} d6 {[%emt 0:00:35]} 8. e5 {[%emt 0:06:21]} dxe5 {[%emt 0:04:11]} 9. Nxe5 {[%emt 0:00:06]} Bxg2 {[%emt 0:00:18]} 10. Kxg2 {[%emt 0:00:07]} Nf6 {[%emt 0:01:11]} 11. Qf3 {[%emt 0:00:15]} Ra7 {[%emt 0:00:59]} 12. a4 {[%emt 0:01:56]} b4 {[%emt 0:06:04]} 13. Ne4 {[%emt 0:04:06]} O-O {[%emt 0:01:31]} 14. Re1 {[%emt 0:15:51]} Nd5 {[%emt 0:06:48]} 15. Nd2 {[%emt 0:14:01]} Qc7 {[%emt 0:12:15]} 16. Ndc4 {[%emt 0:00:36]} Nd7 {[%emt 0:04:52]} 17. Nxd7 {[%emt 0:02:49]} Qxd7 {[%emt 0:00:09]} 18. Ne5 {[%emt 0:00:03]} Qd6 {[%emt 0:02:23]} 19. Nc4 {[%emt 0:03:43]} Qd8 {[%emt 0:02:43]} 20. Bd2 {[%emt 0:00:44]} Bf6 {[%emt 0:01:06]} 21. Be3 {[%emt 0:02:07]} Qc7 {[%emt 0:00:56]} 1/2-1/2

[Event "European-ch Seniors 2018"]
[Site "Drammen"]
[Date "2018.08.09"]
[Round "6"]
[White "Ackermann, Hans Werner"]
[Black "Schouten, Nico"]
[Result "1-0"]
[ECO "A05"]
[WhiteElo "2246"]
[BlackElo "2126"]
[Annotator "NA"]
[PlyCount "65"]
[EventDate "2018.08.04"]
[EventType "swiss"]
[EventCountry "NOR"]
[SourceTitle "playchess.com"]
[Source "ChessBase"]
[SourceQuality "1"]
[TimeControl "40/5400+30:1800+30"]

1. Nf3 {[%emt 0:00:00]} Nf6 {[%emt 0:00:00]} 2. b3 {[%emt 0:00:00]} e6 {[%emt 0:00:22]} 3. Bb2 {[%emt 0:00:13]} Be7 {[%emt 0:00:05]} 4. e3 {[%emt 0:05:21]} d5 {[%emt 0:03:26]} 5. d4 {[%emt 0:00:44]} O-O {[%emt 0:00:12]} 6. Bd3 {[%emt 0:00:13]} b6 {[%emt 0:03:34]} 7. O-O {[%emt 0:00:35]} Bb7 {[%emt 0:00:35]} 8. c4 {[%emt 0:03:27]} c5 {[%emt 0:03:06]} 9. cxd5 {[%emt 0:02:44]} exd5 {[%emt 0:02:05]} 10. Nc3 {[%emt 0:08:23]} Nbd7 {[%emt 0:11:25]} 11. Rc1 {[%emt 0:02:57]} Rc8 {[%emt 0:06:26]} 12. Qe2 {[%emt 0:04:35]} Ne4 {[%emt 0:14:19]} 13. Rfd1 {[%emt 0:05:01]} Nxc3 {[%emt 0:08:33]} 14. Bxc3 {[%emt 0:01:46]} Qc7 {[%emt 0:03:22]} 15. Bb2 {[%emt 0:16:49]} Bd6 {[%emt 0:06:21]} 16. h3 {[%emt 0:11:49]} g6 {[%emt 0:01:42]} 17. Rc2 {[%emt 0:01:48]} Qd8 {[%emt 0:09:07]} 18. Bb5 {[%emt 0:15:38]} Nb8 {[%emt 0:05:30]} 19. a3 {[%emt 0:04:26]} Qe7 {[%emt 0:00:17]} 20. Qd2 {[%emt 0:04:21]} Rfd8 {[%emt 0:02:45]} 21. Rdc1 {[%emt 0:00:52]} f6 {[%emt 0:06:30]} 22. dxc5 {[%emt 0:00:53]} bxc5 {[%emt 0:00:22]} 23. Nh2 {[%emt 0:00:07]} Bxh2+ {[%emt 0:01:13]} 24. Kxh2 {[%emt 0:00:06]} a6 {[%emt 0:01:43]} 25. Bf1 {[%emt 0:00:16]} Nd7 {[%emt 0:00:09]} 26. Qa5 {[%emt 0:00:34]} Kg7 {[%emt 0:02:52]} 27. Kg1 {[%emt 0:00:15]} h5 {[%emt 0:01:33]} 28. a4 {[%emt 0:00:27]} Qe6 {[%emt 0:02:03]} 29. Ba3 {[%emt 0:04:24]} c4 {[%emt 0:00:14]} 30. bxc4 {[%emt 0:00:16]} dxc4 {[%emt 0:00:06]} 31. Rxc4 {[%emt 0:00:15]} Rxc4 {[%emt 0:02:46]} 32. Rxc4 {[%emt 0:00:10]} Ne5 {[%emt 0:02:05]} 33. Qxd8 {[%emt 0:00:12]} 1-0